fUSD/lending_fUSD_20250216
["ID","MTS","AMOUNT","RATE_DAILY","PERIOD"]
[353232159,1739693442008,-500.0,0.00010958,2]
[353232160,1739693442019,-500.0,0.00010958,2]
[353232161,1739693442036,-512.2,0.00010958,2]
[353232162,1739693442047,-695.37,0.00010958,2]
[353232163,1739693442057,-500.0,0.00010958,2]
[353232164,1739693442066,-500.0,0.00010958,2]
[353232165,1739693442075,-500.0,0.00010958,2]
[353232166,1739693442085,-500.0,0.00010958,2]
[353232167,1739693442094,-500.0,0.00010958,2]
[353232168,1739693442104,-500.0,0.00010958,2]
[353232169,1739693442114,-191.53722471,0.00010958,2]
[353232170,1739693442124,-500.0,0.00010958,2]
[353232171,1739693442133,-500.0,0.00010958,2]
[353232172,1739693442143,-500.0,0.00010958,2]
[353232173,1739693442152,-501.37237656,0.00010958,2]
[353232174,1739693442162,-500.0,0.00010958,2]
[353232175,1739693442173,-500.0,0.00010958,2]
[353232176,1739693442182,-500.0,0.00010958,2]
[353232177,1739693442191,-292.86027112,0.00010958,2]
[353232178,1739693442201,-500.0,0.00010958,2]
[353232179,1739693442210,-500.0,0.00010958,2]
[353232180,1739693442220,-500.0,0.00010958,2]
[353232181,1739693442229,-500.0,0.00010958,2]
[353232182,1739693442238,-504.74650064,0.00010958,2]
[353232183,1739693442247,-500.97002798,0.00010958,2]
[353232184,1739693442256,-500.0,0.00010958,2]
[353232185,1739693442266,-519.61,0.00010958,2]
[353232186,1739693442275,-500.0,0.00010958,2]
[353232187,1739693442285,-679.91,0.00010958,2]
[353232188,1739693442294,-500.0,0.00010958,2]
[353232189,1739693442303,-500.0,0.00010958,2]
[353232190,1739693442312,-502.94876305,0.00010958,2]
[353232191,1739693442322,-1111.22,0.00010958,2]
[353232192,1739693442331,-500.0,0.00010958,2]
[353232193,1739693442341,-715.04,0.00010958,2]
[353232194,1739693442350,-500.0,0.00010958,2]
[353232195,1739693442360,-500.0,0.00010958,2]
[353232196,1739693442370,-500.0,0.00010958,2]
[353232197,1739693442380,-535.42,0.00010958,2]
[353232198,1739693442389,-500.0,0.00010958,2]
[353232199,1739693442399,-500.0,0.00010958,2]
[353232200,1739693442409,-500.0,0.00010958,2]
[353232201,1739693442419,-500.0,0.00010958,2]
[353232202,1739693442428,-509.24587225,0.00010958,2]
[353232203,1739693442438,-500.0,0.00010958,2]
[353232204,1739693442447,-500.0,0.00010958,2]
[353232205,1739693442457,-500.0,0.00010958,2]
[353232206,1739693442466,-504.10688933,0.00010958,2]
[353232207,1739693442475,-500.0,0.00010958,2]
[353232208,1739693442485,-505.69093715,0.00010958,2]
[353232209,1739693442494,-505.01368891,0.00010958,2]
[353232210,1739693442504,-517.98,0.00010958,2]
[353232211,1739693442513,-466.29059654,0.00010958,2]
[353232212,1739693442522,-790.22,0.00010958,2]
[353232213,1739693442532,-500.0,0.00010958,2]
[353232214,1739693442542,-731.2,0.00010958,2]
[353232215,1739693442551,-500.0,0.00010958,2]
[353232216,1739693442560,-1362.45,0.00010958,2]
[353232217,1739693442570,-752.51,0.00010958,2]
[353232218,1739693442579,-545.3191266,0.00010958,2]
[353232219,1739693442588,-522.12,0.00010958,2]
[353232220,1739693442598,-503.84359857,0.00010958,2]
[353232221,1739693442607,-502.62857309,0.00010958,2]
[353232222,1739693442618,-1497.13,0.00010958,2]
[353232223,1739693442627,-500.0,0.00010958,2]
[353232224,1739693442636,-500.0,0.00010958,2]
[353232225,1739693442645,-500.0,0.00010958,2]
[353232226,1739693442654,-842.77,0.00010958,2]
[353232227,1739693442663,-500.0,0.00010958,2]
[353232228,1739693442672,-500.0,0.00010958,2]
[353232229,1739693442681,-500.0,0.00010958,2]
[353232230,1739693442690,-500.0,0.00010958,2]
[353232231,1739693442699,-612.93,0.00010958,2]
[353232232,1739693442708,-500.0,0.00010958,2]
[353232233,1739693442717,-507.08577796,0.00010958,2]
[353232234,1739693442726,-1494.15,0.00010958,2]
[353232235,1739693442735,-785.52,0.00010958,2]
[353232236,1739693442745,-1748.41,0.00010958,2]
[353232237,1739693442754,-500.0,0.00010958,2]
[353232238,1739693442763,-644.19,0.00010958,2]
[353232239,1739693442773,-948.38,0.00010958,2]
[353232240,1739693442782,-500.0,0.00010958,2]
[353232241,1739693442791,-502.54973924,0.00010958,2]
[353232242,1739693442800,-500.0,0.00010958,2]
[353232243,1739693442809,-4421.64,0.00010958,2]
[353232244,1739693442818,-501.61584391,0.00010958,2]
[353232245,1739693442827,-1191.84,0.00010958,2]
[353232246,1739693442836,-502.3154147,0.00010958,2]
[353232247,1739693442845,-502.57473635,0.00010958,2]
[353232248,1739693442854,-501.3463335,0.00010958,2]
[353232249,1739693442863,-500.0,0.00010958,2]
[353232251,1739693442876,-500.0,0.00010958,2]
[353232253,1739693442885,-500.0,0.00010958,2]
[353232254,1739693442894,-502.75538289,0.00010958,2]
[353232256,1739693442903,-500.0,0.00010958,2]
[353232258,1739693442911,-500.0,0.00010958,2]
[353232260,1739693442920,-505.91432047,0.00010958,2]
[353232262,1739693442929,-500.0,0.00010958,2]
[353232264,1739693442938,-914.37,0.00010958,2]
[353232266,1739693442947,-1487.82,0.00010958,2]
[353232267,1739693442957,-500.0,0.00010958,2]
[353232268,1739693442967,-501.41990832,0.00010958,2]
[353232269,1739693442975,-596.72,0.00010958,2]
[353232270,1739693442985,-500.0,0.00010958,2]
[353232271,1739693442994,-502.75496592,0.00010958,2]
[353232272,1739693443003,-1458.87,0.00010958,2]
[353232274,1739693443012,-569.92,0.00010958,2]
[353232276,1739693443022,-870.86,0.00010958,2]
[353232279,1739693443031,-500.0,0.00010958,2]
[353232281,1739693443040,-500.0,0.00010958,2]
[353232284,1739693443050,-504.09984562,0.00010958,2]
[353232286,1739693443059,-500.0,0.00010958,2]
[353232288,1739693443068,-502.15374585,0.00010958,2]
[353232290,1739693443077,-1274.68,0.00010958,2]
[353232292,1739693443086,-762.18,0.00010958,2]
[353232294,1739693443095,-500.0,0.00010958,2]
[353232296,1739693443104,-934.2,0.00010958,2]
[353232297,1739693443113,-500.0,0.00010958,2]
[353232299,1739693443122,-503.63034899,0.00010958,2]
[353232301,1739693443131,-1627.75,0.00010958,2]
[353232302,1739693443140,-503.05466665,0.00010958,2]
[353232303,1739693443150,-500.0,0.00010958,2]
[353232305,1739693443161,-505.05479314,0.00010958,2]
[353232307,1739693443173,-502.90229219,0.00010958,2]
[353232309,1739693443182,-500.0,0.00010958,2]
[353232311,1739693443191,-893.41,0.00010958,2]
[353232313,1739693443200,-502.95097692,0.00010958,2]
[353232315,1739693443209,-275.30415489,0.00010958,2]
[353232317,1739693443220,-801.66,0.00010958,2]
[353232319,1739693443229,-503.74177744,0.00010958,2]
[353232321,1739693443239,-502.81443328,0.00010958,2]
[353232323,1739693443250,-503.56304194,0.00010958,2]
[353232324,1739693443260,-1473.94,0.00010958,2]
[353232325,1739693443270,-500.0,0.00010958,2]
[353232326,1739693443279,-500.0,0.00010958,2]
[353232327,1739693443289,-518.2974952,0.00010958,2]
[353232328,1739693443299,-1252.3,0.00010958,2]
[353232329,1739693443308,-502.29524279,0.00010958,2]
[353232330,1739693443317,-500.0,0.00010958,2]
[353232331,1739693443327,-502.89888047,0.00010958,2]
[353232332,1739693443336,-654.93,0.00010958,2]
[353232333,1739693443346,-500.0,0.00010958,2]
[353232334,1739693443356,-500.0,0.00010958,2]
[353232335,1739693443366,-500.0,0.00010958,2]
[353232336,1739693443376,-507.23584837,0.00010958,2]
[353232337,1739693443385,-500.0,0.00010958,2]
[353232338,1739693443395,-500.0,0.00010958,2]
[353232339,1739693443404,-1930.43,0.00010958,2]
[353232340,1739693443414,-2845.78,0.00010958,2]
[353232341,1739693443423,-504.22707638,0.00010958,2]
[353232342,1739693443433,-1075.83,0.00010958,2]
[353232343,1739693443443,-500.0,0.00010958,2]
[353232344,1739693443452,-504.30356208,0.00010958,2]
[353232345,1739693443462,-500.0,0.00010958,2]
[353232346,1739693443472,-500.0,0.00010958,2]
[353232347,1739693443481,-510.5972706,0.00010958,2]
[353232348,1739693443490,-548.94,0.00010958,2]
[353232349,1739693443500,-1088.93,0.00010958,2]
[353232350,1739693443510,-504.25815344,0.00010958,2]
[353232351,1739693443520,-706.27,0.00010958,2]
[353232352,1739693443530,-1059.89,0.00010958,2]
[353232353,1739693443539,-1271.66,0.00010958,2]
[353232354,1739693443549,-500.0,0.00010958,2]
[353232355,1739693443559,-507.69573261,0.00010958,2]
[353232356,1739693443568,-249.19038258,0.00010958,2]
[353232357,1739693443578,-1098.98,0.00010958,2]
[353232358,1739693443587,-500.0,0.00010958,2]
[353232359,1739693443596,-504.60752223,0.00010958,2]
[353232360,1739693443606,-911.39,0.00010958,2]
[353232361,1739693443616,-500.0,0.00010958,2]
[353232362,1739693443626,-500.0,0.00010958,2]
[353232363,1739693443636,-502.41545748,0.00010958,2]
[353232364,1739693443645,-500.0,0.00010958,2]
[353232365,1739693443655,-914.0,0.00010958,2]
[353232366,1739693443664,-843.66,0.00010958,2]
[353232367,1739693443675,-504.54198602,0.00010958,2]
[353232368,1739693443684,-500.0,0.00010958,2]
[353232369,1739693443694,-1618.34,0.00010958,2]
[353232370,1739693443703,-2242.66,0.00010958,2]
[353232371,1739693443713,-504.75545915,0.00010958,2]
[353232372,1739693443722,-512.99042377,0.00010958,2]
[353232373,1739693443730,-1510.94,0.00010958,2]
[353232374,1739693443740,-1232.19,0.00010958,2]
[353232375,1739693443750,-500.0,0.00010958,2]
[353232376,1739693443760,-500.0,0.00010958,2]
[353232377,1739693443770,-500.0,0.00010958,2]
[353232378,1739693443780,-738.69,0.00010958,2]
[353232379,1739693443789,-1873.03,0.00010958,2]
[353232380,1739693443799,-738.36,0.00010958,2]
[353232381,1739693443810,-642.82121372,0.00010958,2]
[353232382,1739693443819,-550.98,0.00010958,2]
[353232383,1739693443829,-500.0,0.00010958,2]
[353232384,1739693443839,-500.0,0.00010958,2]
[353232385,1739693443849,-500.0,0.00010958,2]
[353232386,1739693443859,-1772.73,0.00010958,2]
[353232387,1739693443871,-504.23482452,0.00010958,2]
[353232388,1739693443881,-470.31714254,0.00010958,2]
[353232389,1739693443891,-644.38,0.00010958,2]
[353232390,1739693443901,-1414.42,0.00010958,2]
[353232391,1739693443911,-500.0,0.00010958,2]
[353232392,1739693443921,-500.0,0.00010958,2]
[353232393,1739693443931,-500.0,0.00010958,2]
[353232394,1739693443942,-500.0,0.00010958,2]
[353232395,1739693443952,-971.55,0.00010958,2]
[353232396,1739693443962,-500.0,0.00010958,2]
[353232397,1739693443971,-517.21,0.00010958,2]
[353232398,1739693443981,-1779.65,0.00010958,2]
[353232399,1739693443993,-530.91798109,0.00010958,2]
[353232400,1739693444002,-616.51,0.00010958,2]
[353232401,1739693444011,-1764.2,0.00010958,2]
[353232402,1739693444020,-3098.6,0.00010958,2]
[353232403,1739693444031,-503.77452479,0.00010958,2]
[353232404,1739693444040,-503.96748836,0.00010958,2]
[353232405,1739693444051,-1025.81,0.00010958,2]
[353232406,1739693444060,-506.17148035,0.00010958,2]
[353232407,1739693444069,-500.0,0.00010958,2]
[353232408,1739693444079,-501.95875711,0.00010958,2]
[353232409,1739693444089,-1699.9,0.00010958,2]
[353232410,1739693444099,-3613.38,0.00010958,2]
[353232411,1739693444108,-1678.0,0.00010958,2]
[353232412,1739693444117,-535.91,0.00010958,2]
[353232413,1739693444126,-500.0,0.00010958,2]
[353232414,1739693444135,-1152.22,0.00010958,2]
[353232415,1739693444144,-504.29337705,0.00010958,2]
[353232416,1739693444154,-505.37434711,0.00010958,2]
[353232417,1739693444163,-907.34,0.00010958,2]
[353232418,1739693444177,-500.0,0.00010958,2]
[353232419,1739693444187,-510.7769943,0.00010958,2]
[353232420,1739693444196,-3037.62,0.00010958,2]
[353232421,1739693444205,-1912.24,0.00010958,2]
[353232422,1739693444215,-1045.48,0.00010958,2]
[353232423,1739693444225,-2072.12,0.00010958,2]
[353232424,1739693444234,-500.0,0.00010958,2]
[353232425,1739693444244,-505.44190468,0.00010958,2]
[353232426,1739693444254,-1391.39,0.00010958,2]
[353232427,1739693444263,-504.17531236,0.00010958,2]
[353232428,1739693444273,-1395.61,0.00010958,2]
[353232429,1739693444283,-500.0,0.00010958,2]
[353232430,1739693444292,-814.32,0.00010958,2]
[353232431,1739693444301,-500.0,0.00010958,2]
[353232432,1739693444311,-500.0,0.00010958,2]
[353232433,1739693444320,-500.0,0.00010958,2]
[353232434,1739693444330,-1554.3,0.00010958,2]
[353232435,1739693444340,-801.19,0.00010958,2]
[353232436,1739693444350,-500.0,0.00010958,2]
[353232437,1739693444360,-501.0723375,0.00010958,2]
[353232438,1739693444369,-502.75595197,0.00010958,2]
[353232439,1739693444379,-1173.12,0.00010958,2]
[353232440,1739693444389,-804.51,0.00010958,2]
[353232441,1739693444399,-501.56231021,0.00010958,2]
[353232442,1739693444408,-1232.61,0.00010958,2]
[353232443,1739693444418,-743.71,0.00010958,2]
[353232444,1739693444427,-500.0,0.00010958,2]
[353232445,1739693444437,-1900.23,0.00010958,2]
[353232446,1739693444446,-2056.31,0.00010958,2]
[353232447,1739693444456,-500.0,0.00010958,2]
[353232448,1739693444466,-500.0,0.00010958,2]
[353232449,1739693444476,-502.07935023,0.00010958,2]
[353232450,1739693444486,-500.0,0.00010958,2]
[353232451,1739693444496,-500.0,0.00010958,2]
[353232452,1739693444506,-500.0,0.00010958,2]
[353232453,1739693444515,-957.04,0.00010958,2]
[353232454,1739693444525,-500.0,0.00010958,2]
[353232455,1739693444534,-1146.85,0.00010958,2]
[353232456,1739693444544,-1550.6,0.00010958,2]
[353232457,1739693444554,-500.0,0.00010958,2]
[353232458,1739693444563,-447.2914204,0.00010958,2]
[353232459,1739693444572,-503.46910748,0.00010958,2]
[353232460,1739693444581,-2373.51,0.00010958,2]
[353232461,1739693444590,-3912.64,0.00010958,2]
[353232462,1739693444599,-500.0,0.00010958,2]
[353232463,1739693444607,-1643.53,0.00010958,2]
[353232464,1739693444616,-500.0,0.00010958,2]
[353232465,1739693444625,-1084.43,0.00010958,2]
[353232466,1739693444634,-5172.54,0.00010958,2]
[353232467,1739693444643,-1459.19,0.00010958,2]
[353232468,1739693444653,-500.0,0.00010958,2]
[353232469,1739693444662,-1758.63,0.00010958,2]
[353232470,1739693444671,-500.0,0.00010958,2]
[353232471,1739693444681,-500.0,0.00010958,2]
[353232472,1739693444690,-2056.22,0.00010958,2]
[353232473,1739693444699,-1267.31,0.00010958,2]
[353232474,1739693444709,-500.0,0.00010958,2]
[353232475,1739693444718,-981.99,0.00010958,2]
[353232476,1739693444728,-500.0,0.00010958,2]
[353232477,1739693444738,-500.0,0.00010958,2]
[353232478,1739693444748,-677.34,0.00010958,2]
[353232479,1739693444757,-500.0,0.00010958,2]
[353232480,1739693444766,-1754.09,0.00010958,2]
[353232481,1739693444776,-500.0,0.00010958,2]
[353232482,1739693444785,-1267.47,0.00010958,2]
[353232483,1739693444794,-500.0,0.00010958,2]
[353232484,1739693444804,-500.0,0.00010958,2]
[353232485,1739693444813,-1913.38,0.00010958,2]
[353232486,1739693444822,-500.0,0.00010958,2]
[353232487,1739693444832,-500.0,0.00010958,2]
[353232488,1739693444841,-712.96,0.00010958,2]
[353232489,1739693444851,-3004.31,0.00010958,2]
[353232490,1739693444860,-1092.38,0.00010958,2]
[353232491,1739693444870,-675.43,0.00010958,2]
[353232492,1739693444879,-500.0,0.00010958,2]
[353232493,1739693444888,-983.17,0.00010958,2]
[353232494,1739693444898,-621.27495369,0.00010958,2]
[353232495,1739693444907,-500.0,0.00010958,2]
[353232496,1739693444917,-500.0,0.00010958,2]
[353232497,1739693444927,-1277.4,0.00010958,2]
[353232498,1739693444936,-664.05,0.00010958,2]
[353232499,1739693444945,-990.09,0.00010958,2]
[353232500,1739693444955,-500.0,0.00010958,2]
[353232501,1739693444965,-500.0,0.00010958,2]
[353232502,1739693444974,-500.0,0.00010958,2]
[353232503,1739693444984,-999.6,0.00010958,2]
[353232504,1739693445146,-342.15368164,0.00010958,2]
[353232505,1739693445157,-500.0,0.00010958,2]
[353232506,1739693445167,-1898.72,0.00010958,2]
[353232507,1739693445180,-500.0,0.00010958,2]
[353232508,1739693445190,-2997.14,0.00010958,2]
[353232509,1739693445201,-500.0,0.00010958,2]
[353232510,1739693445210,-500.0,0.00010958,2]
[353232511,1739693445220,-502.25,0.00010958,2]
[353232512,1739693445230,-500.0,0.00010958,2]
[353232513,1739693445240,-500.0,0.00010958,2]
[353232514,1739693445249,-506.28172056,0.00010958,2]
[353232515,1739693445259,-500.0,0.00010958,2]
[353232516,1739693445268,-1417.68,0.00010958,2]
[353232517,1739693445278,-500.0,0.00010958,2]
[353232518,1739693445288,-868.14,0.00010958,2]
[353232519,1739693445298,-1565.59,0.00010958,2]
[353232520,1739693445307,-500.0,0.00010958,2]
[353232521,1739693445316,-3878.36,0.00010958,2]
[353232522,1739693445325,-613.95,0.00010958,2]
[353232523,1739693445334,-500.0,0.00010958,2]
[353232524,1739693445344,-1515.99,0.00010958,2]
[353232525,1739693445354,-623.81,0.00010958,2]
[353232526,1739693445364,-500.0,0.00010958,2]
[353232527,1739693445374,-521.00508192,0.00010958,2]
[353232528,1739693445383,-600.1,0.00010958,2]
[353232529,1739693445393,-500.0,0.00010958,2]
[353232530,1739693445403,-545.31,0.00010958,2]
[353232531,1739693445413,-500.0,0.00010958,2]
[353232532,1739693445423,-700.0,0.0001097,2]
[353232533,1739693445432,-700.0,0.0001097,2]
[353232534,1739693445442,-700.0,0.0001097,2]
[353232535,1739693445451,-700.0,0.0001097,2]
[353232536,1739693445461,-700.0,0.0001097,2]
[353232537,1739693445471,-1164.90884093,0.0001097,2]
[353232538,1739693445480,-215.4609908,0.00010999,2]
[353232539,1739693445489,-939.17186364,0.00010999,2]
[353232540,1739693445499,-150.0,0.00010999,2]
[353232541,1739693445508,-127185.78711601,0.00011,2]
[353232542,1739693445518,-5242.1349351,0.00011,2]
[353232543,1739693445528,-151.0,0.00011,2]
[353232544,1739693445539,-442.0,0.00011,2]
[353232545,1739693445548,-64479.40977062,0.00011023,2]
[353232546,1739693445558,-440.1,0.00011024,2]
[353232547,1739693445567,-320.0,0.0001103,2]
[353232548,1739693445577,-232087.07189214,0.00011038,2]
[353232549,1739693445586,-151.0,0.00011038,2]
[353232550,1739693445595,-1218.64,0.00011039,2]
[353232551,1739693445605,-151.08955251,0.0001104,2]
[353232552,1739693445614,-150.0,0.0001104,2]
[353232553,1739693445623,-150.0,0.0001104,2]
[353232554,1739693445633,-150.0,0.0001104,2]
[353232555,1739693445642,-8525.90978954,0.0001104,2]
[353232556,1739693445651,-559.17258537,0.0001104,2]
[353232557,1739693445661,-4132.30168218,0.0001104,2]
[353232558,1739693445670,-24734.09,0.0001104,2]
[353232559,1739693445680,-150.0,0.0001104,2]
[353232560,1739693445689,-69418.23027499,0.0001104,2]
[353232561,1739693445698,-1894.773221,0.0001104,3]
[353232562,1739693445707,-1894.773221,0.0001104,3]
[353232563,1739693445716,-1894.773221,0.0001104,3]
[353232564,1739693445725,-1894.773221,0.0001104,3]
[353232565,1739693445734,-1894.773221,0.0001104,3]
[353232566,1739693445744,-175.791128,0.0001104,3]
[353232567,1739693445753,-175.791128,0.0001104,3]
[353232568,1739693445762,-1347.731953,0.0001104,3]
[353232569,1739693445771,-1347.731953,0.0001104,3]
[353232570,1739693445781,-1347.731953,0.0001104,3]
[353232571,1739693445790,-1347.731953,0.0001104,3]
[353232572,1739693445800,-1347.731953,0.0001104,3]
[353232573,1739693445809,-873.67488935,0.0001104,2]
[353232574,1739693445819,-1000.0,0.0001104,2]
[353232575,1739693445828,-1000.0,0.0001104,2]
[353232576,1739693445838,-1000.0,0.0001104,2]
[353232577,1739693445847,-1000.0,0.0001104,2]
[353232578,1739693445856,-1000.0,0.0001104,2]
[353232579,1739693445866,-1000.0,0.0001104,2]
[353232580,1739693445875,-1000.0,0.0001104,2]
[353232581,1739693445885,-1000.0,0.0001104,2]
[353232582,1739693445894,-1000.0,0.0001104,2]
[353232584,1739693445904,-1000.0,0.0001104,2]
[353232586,1739693445913,-500.0,0.00011041,2]
[353232588,1739693445923,-151.0,0.00011041,2]
[353232589,1739693445932,-500.0,0.00011041,2]
[353232590,1739693445942,-500.0,0.00011041,2]
[353232591,1739693445951,-500.0,0.00011041,2]
[353232592,1739693445961,-500.0,0.00011041,2]
[353232593,1739693445971,-546.7,0.00011041,2]
[353232594,1739693445980,-500.0,0.00011041,2]
[353232595,1739693445990,-500.0,0.00011041,2]
[353232596,1739693445999,-500.0,0.00011041,2]
[353232597,1739693446009,-1688.32,0.00011041,2]
[353232598,1739693446018,-500.0,0.00011041,2]
[353232599,1739693446027,-500.0,0.00011041,2]
[353232600,1739693446037,-500.0,0.00011041,2]
[353232601,1739693446046,-500.0,0.00011041,2]
[353232602,1739693446055,-500.0,0.00011041,2]
[353232603,1739693446065,-500.0,0.00011041,2]
[353232604,1739693446074,-500.0,0.00011041,2]
[353232605,1739693446084,-500.0,0.00011041,2]
[353232606,1739693446094,-500.0,0.00011041,2]
[353232607,1739693446103,-500.0,0.00011041,2]
[353232608,1739693446112,-500.0,0.00011041,2]
[353232609,1739693446121,-510.3,0.00011041,2]
[353232610,1739693446131,-500.0,0.00011041,2]
[353232611,1739693446139,-500.0,0.00011041,2]
[353232612,1739693446149,-500.0,0.00011041,2]
[353232613,1739693446158,-500.0,0.00011041,2]
[353232614,1739693446167,-500.0,0.00011041,2]
[353232615,1739693446179,-500.0,0.00011041,2]
[353232616,1739693446188,-500.0,0.00011041,2]
[353232617,1739693446197,-500.0,0.00011041,2]
[353232618,1739693446206,-500.0,0.00011041,2]
[353232619,1739693446216,-500.0,0.00011041,2]
[353232620,1739693446227,-500.0,0.00011041,2]
[353232621,1739693446236,-500.0,0.00011041,2]
[353232622,1739693446247,-500.0,0.00011041,2]
[353232623,1739693446258,-500.0,0.00011041,2]
[353232624,1739693446267,-331.73193211,0.00011041,2]
[353232625,1739693446277,-504.75213512,0.00011041,2]
[353232626,1739693446287,-505.00165365,0.00011041,2]
[353232627,1739693446296,-500.0,0.00011041,2]
[353232628,1739693446306,-553.68,0.00011041,2]
[353232629,1739693446316,-500.0,0.00011041,2]
[353232630,1739693446325,-500.0,0.00011041,2]
[353232631,1739693446334,-500.0,0.00011041,2]
[353232632,1739693446344,-500.0,0.00011041,2]
[353232633,1739693446353,-500.0,0.00011041,2]
[353232634,1739693446362,-500.0,0.00011041,2]
[353232635,1739693446372,-500.0,0.00011041,2]
[353232636,1739693446382,-500.0,0.00011041,2]
[353232637,1739693446392,-506.42731753,0.00011041,2]
[353232638,1739693446401,-512.74875387,0.00011041,2]
[353232639,1739693446411,-500.0,0.00011041,2]
[353232640,1739693446420,-500.0,0.00011041,2]
[353232641,1739693446429,-507.21403361,0.00011041,2]
[353232642,1739693446439,-500.0,0.00011041,2]
[353232643,1739693446448,-500.0,0.00011041,2]
[353232644,1739693446458,-515.34,0.00011041,2]
[353232645,1739693446467,-500.0,0.00011041,2]
[353232646,1739693446477,-500.0,0.00011041,2]
[353232647,1739693446487,-505.17565839,0.00011041,2]
[353232648,1739693446496,-500.0,0.00011041,2]
[353232649,1739693446507,-500.0,0.00011041,2]
[353232650,1739693446517,-500.0,0.00011041,2]
[353232651,1739693446527,-500.0,0.00011041,2]
[353232652,1739693446538,-500.0,0.00011041,2]
[353232653,1739693446547,-500.0,0.00011041,2]
[353232654,1739693446557,-500.0,0.00011041,2]
[353232655,1739693446566,-500.0,0.00011041,2]
[353232656,1739693446576,-500.0,0.00011041,2]
[353232657,1739693446585,-681.72,0.00011041,2]
[353232658,1739693446594,-669.19,0.00011041,2]
[353232659,1739693446603,-223.75623735,0.00011041,2]
[353232660,1739693446613,-500.0,0.00011041,2]
[353232661,1739693446622,-500.0,0.00011041,2]
[353232662,1739693446631,-500.0,0.00011041,2]
[353232663,1739693446641,-535.78,0.00011041,2]
[353232664,1739693446650,-500.0,0.00011041,2]
[353232665,1739693446659,-500.0,0.00011041,2]
[353232666,1739693446668,-500.0,0.00011041,2]
[353232667,1739693446677,-500.0,0.00011041,2]
[353232668,1739693446687,-500.0,0.00011041,2]
[353232669,1739693446696,-685.05,0.00011041,2]
[353232670,1739693446706,-500.0,0.00011041,2]
[353232671,1739693446716,-502.52,0.00011041,2]
[353232672,1739693446725,-680.9,0.00011041,2]
[353232673,1739693446735,-500.0,0.00011041,2]
[353232674,1739693446745,-500.0,0.00011041,2]
[353232675,1739693446754,-500.0,0.00011041,2]
[353232676,1739693446763,-527.02,0.00011041,2]
[353232677,1739693446772,-500.0,0.00011041,2]
[353232678,1739693446782,-500.0,0.00011041,2]
[353232679,1739693446791,-669.59,0.00011041,2]
[353232680,1739693446801,-500.0,0.00011041,2]
[353232681,1739693446810,-500.0,0.00011041,2]
[353232682,1739693446820,-500.0,0.00011041,2]
[353232683,1739693446830,-500.0,0.00011041,2]
[353232684,1739693446839,-500.0,0.00011041,2]
[353232685,1739693446849,-500.0,0.00011041,2]
[353232686,1739693446858,-500.0,0.00011041,2]
[353232687,1739693446868,-500.0,0.00011041,2]
[353232688,1739693446877,-500.0,0.00011041,2]
[353232689,1739693446886,-500.0,0.00011041,2]
[353232690,1739693446896,-863.76,0.00011041,2]
[353232691,1739693446907,-500.0,0.00011041,2]
[353232692,1739693446916,-500.0,0.00011041,2]
[353232693,1739693446926,-500.0,0.00011041,2]
[353232694,1739693446935,-500.0,0.00011041,2]